fUST/lending_fUST_20250305
["ID","MTS","AMOUNT","RATE_DAILY","PERIOD"]
[355397365,1741104656143,-1373.15,0.00041917,120]
[355397366,1741104656154,-500.0,0.00041917,120]
[355397367,1741104656165,-689.05,0.00041917,120]
[355397368,1741104656179,-1000.0,0.00041917,88]
[355397369,1741104656190,-500.0,0.00041917,120]
[355397370,1741104656200,-1150.18,0.00041917,120]
[355397371,1741104656210,-941.29,0.00041917,120]
[355397372,1741104656220,-500.0,0.00041917,120]
[355397373,1741104656230,-500.0,0.00041917,120]
[355397374,1741104656241,-500.0,0.00041917,120]
[355397375,1741104656251,-751.73,0.00041917,120]
[355397376,1741104656261,-500.0,0.00041917,120]
[355397377,1741104656271,-1000.0,0.00041917,120]
[355397378,1741104656281,-500.0,0.00041917,120]
[355397379,1741104656291,-321.89050999,0.00041917,120]
[355397380,1741104656301,-500.0,0.00041917,120]
[355397381,1741104656312,-161.7,0.00041917,120]
[355397382,1741104656323,-800.0,0.00041968,14]
[355397383,1741104656333,-2000.0,0.00041973,120]
[355397384,1741104656343,-150.0,0.00041973,10]
[355397385,1741104656353,-20000.0,0.00042,42]
[355397386,1741104656363,-500.0,0.00042,30]
[355397387,1741104656373,-500.0,0.00042,30]
[355397388,1741104656383,-500.0,0.00042,30]
[355397389,1741104656393,-500.0,0.00042,30]
[355397390,1741104656403,-500.0,0.00042,30]
[355397391,1741104656412,-500.0,0.00042,30]
[355397392,1741104656428,-500.0,0.00042,30]
[355397393,1741104656438,-500.0,0.00042,30]
[355397394,1741104656448,-514.8,0.00042,30]
[355397395,1741104656458,-1209.0,0.00042,30]
[355397396,1741104656468,-155.305212,0.00042,120]
[355397397,1741104656479,-151.0,0.00042,120]
[355397398,1741104656490,-387.617517,0.00042,120]
[355397399,1741104656501,-1000.0,0.00042,120]
[355397400,1741104656512,-151.0,0.00042,120]
[355397401,1741104656522,-151.0,0.00042,120]
[355397402,1741104656567,-151.0,0.00042,120]
[355397403,1741104656658,-151.0,0.00042,120]
[355397404,1741104656670,-1000.0,0.00042,120]
[355397405,1741104656684,-509.351094,0.00042,120]
[355397406,1741104656696,-509.351094,0.00042,120]
[355397407,1741104656707,-151.0,0.00042,110]
[355397408,1741104656718,-1000.0,0.00042,30]
[355397409,1741104656727,-2900.0,0.00042026,60]
[355397410,1741104656739,-800.0,0.00042031,14]
[355397411,1741104656750,-1000.0,0.0004205,30]
[355397412,1741104656760,-2000.0,0.00042054,120]
[355397413,1741104656771,-250.000001,0.0004208,120]
[355397414,1741104656781,-212.69,0.000421,30]
[355397415,1741104656791,-1000.0,0.000421,30]
[355397416,1741104656801,-1000.0,0.0004215,30]
[355397417,1741104656811,-1500.0,0.00042173,120]
[355397418,1741104656821,-1500.0,0.0004218,120]
[355397419,1741104656831,-540.70029327,0.0004218,120]
[355397420,1741104656842,-150.0,0.00042191,2]
[355397421,1741104656853,-500.0,0.00042191,120]
[355397422,1741104656862,-1171.51,0.00042191,120]
[355397423,1741104656872,-1056.18,0.00042191,120]
[355397424,1741104656883,-257.16280613,0.00042191,120]
[355397425,1741104656894,-500.0,0.00042191,120]
[355397426,1741104656904,-1132.47,0.00042191,120]
[355397427,1741104656914,-500.0,0.00042191,120]
[355397428,1741104656930,-500.0,0.00042191,120]
[355397429,1741104656940,-500.0,0.00042191,120]
[355397430,1741104656950,-500.0,0.00042191,120]
[355397431,1741104656960,-500.0,0.00042191,120]
[355397432,1741104656970,-500.0,0.00042191,120]
[355397433,1741104656979,-506.11669232,0.00042191,120]
[355397434,1741104656989,-500.0,0.00042191,120]
[355397435,1741104656999,-499.77997446,0.00042191,120]
[355397436,1741104657008,-500.0,0.00042191,120]
[355397437,1741104657018,-500.0,0.00042191,120]
[355397438,1741104657027,-500.0,0.00042191,120]
[355397439,1741104657038,-612.24531924,0.00042191,120]
[355397440,1741104657048,-500.0,0.00042191,120]
[355397441,1741104657058,-500.0,0.00042191,120]
[355397442,1741104657068,-603.62442072,0.00042191,120]
[355397443,1741104657078,-537.53,0.00042191,120]
[355397444,1741104657088,-500.0,0.00042191,120]
[355397445,1741104657097,-500.0,0.00042191,120]
[355397446,1741104657108,-500.0,0.00042191,120]
[355397447,1741104657119,-500.0,0.00042191,120]
[355397448,1741104657129,-501.07656159,0.00042191,120]
[355397449,1741104657140,-151.0,0.00042191,120]
[355397450,1741104657150,-240.240108,0.00042191,120]
[355397451,1741104657159,-500.0,0.00042191,120]
[355397452,1741104657169,-240.240108,0.00042191,120]
[355397453,1741104657186,-520.16,0.00042191,120]
[355397454,1741104657196,-1044.86,0.00042191,120]
[355397455,1741104657209,-151.0,0.00042191,120]
[355397456,1741104657221,-500.0,0.00042191,120]
[355397457,1741104657231,-500.0,0.00042191,120]
[355397458,1741104657241,-151.0,0.00042191,120]
[355397459,1741104657254,-500.0,0.00042191,120]
[355397460,1741104657264,-500.0,0.00042191,120]
[355397461,1741104657274,-500.0,0.00042191,120]
[355397462,1741104657285,-500.0,0.00042191,120]
[355397463,1741104657296,-500.0,0.00042191,120]
[355397464,1741104657305,-500.0,0.00042191,120]
[355397465,1741104657315,-227.729722,0.00042191,120]
[355397466,1741104657325,-1027.287648,0.00042191,120]
[355397467,1741104657335,-500.0,0.00042191,120]
[355397468,1741104657344,-227.729722,0.00042191,120]
[355397469,1741104657354,-1027.287648,0.00042191,120]
[355397470,1741104657364,-500.0,0.00042191,120]
[355397471,1741104657374,-734.88,0.00042191,120]
[355397472,1741104657384,-500.0,0.00042191,120]
[355397473,1741104657394,-500.0,0.00042191,120]
[355397474,1741104657404,-500.0,0.00042191,120]
[355397475,1741104657413,-500.0,0.00042191,120]
[355397476,1741104657426,-500.0,0.00042191,120]
[355397477,1741104657438,-500.0,0.00042191,120]
[355397478,1741104657451,-4286.73,0.00042191,120]
[355397479,1741104657462,-46585.05,0.00042191,7]
[355397480,1741104657472,-433.21,0.00042191,120]
[355397481,1741104657481,-500.0,0.00042191,120]
[355397482,1741104657492,-4976.68,0.00042191,120]
[355397483,1741104657502,-759.36,0.00042191,120]
[355397484,1741104657512,-500.0,0.00042191,120]
[355397485,1741104657522,-2538.09,0.00042191,120]
[355397486,1741104657531,-3000.0,0.00042191,120]
[355397487,1741104657541,-500.0,0.00042191,120]
[355397488,1741104657550,-614.56571412,0.00042191,120]
[355397489,1741104657560,-224.54,0.00042191,120]
[355397490,1741104657569,-2389.91,0.00042191,120]
[355397491,1741104657578,-1397.6,0.00042191,120]
[355397492,1741104657588,-500.0,0.00042191,120]
[355397493,1741104657598,-537.88,0.00042191,120]
[355397494,1741104657607,-151.0,0.00042191,120]
[355397495,1741104657617,-151.0,0.00042191,120]
[355397496,1741104657626,-198.52,0.00042191,120]
[355397497,1741104657636,-1214.36,0.00042191,120]
[355397498,1741104657648,-500.0,0.00042191,120]
[355397499,1741104657659,-2527.3,0.00042191,6]
[355397500,1741104657668,-412.633779,0.00042191,120]
[355397501,1741104657687,-412.633779,0.00042191,120]
[355397502,1741104657697,-500.0,0.00042191,120]
[355397503,1741104657706,-676.61,0.00042191,120]
[355397504,1741104657715,-500.0,0.00042191,120]
[355397505,1741104657724,-500.0,0.00042191,120]
[355397506,1741104657735,-500.0,0.00042191,120]
[355397507,1741104657745,-544.91680313,0.00042191,120]
[355397508,1741104657754,-500.0,0.00042191,120]
[355397509,1741104657763,-151.0,0.00042191,120]
[355397510,1741104657773,-507.82171614,0.00042191,120]
[355397511,1741104657783,-151.0,0.00042191,120]
[355397512,1741104657792,-600.64,0.00042191,120]
[355397513,1741104657802,-151.0,0.00042191,120]
[355397514,1741104657811,-1052.74,0.00042191,120]
[355397515,1741104657822,-1897.92,0.00042191,120]
[355397516,1741104657831,-2155.44,0.00042191,120]
[355397517,1741104657841,-1373.15,0.00042191,120]
[355397518,1741104657851,-285.47,0.00042191,120]
[355397519,1741104657860,-689.05,0.00042191,120]
[355397520,1741104657869,-1000.0,0.00042191,88]
[355397521,1741104657879,-1150.18,0.00042191,120]
[355397522,1741104657888,-941.29,0.00042191,120]
[355397523,1741104657897,-648.25810586,0.00042191,120]
[355397524,1741104657907,-500.0,0.00042191,120]
[355397525,1741104657917,-500.0,0.00042191,120]
[355397526,1741104657926,-751.73,0.00042191,120]
[355397527,1741104657936,-1000.0,0.00042191,120]
[355397528,1741104657945,-500.0,0.00042191,120]
[355397529,1741104657954,-500.0,0.00042191,120]
[355397530,1741104657964,-350.0,0.00042192,10]
[355397531,1741104657974,-3291.75,0.000422,7]
[355397532,1741104657984,-150.0,0.00042238,30]
[355397533,1741104657993,-800.0,0.00042252,14]
[355397534,1741104658002,-999.99,0.00042282,120]
[355397535,1741104658011,-2500.0,0.000423,120]
[355397536,1741104658020,-2096.87,0.000423,30]
[355397537,1741104658030,-534.7833429,0.00042329,30]
[355397538,1741104658039,-484.84354607,0.00042336,28]
[355397539,1741104658048,-229.99999901,0.00042353,30]
[355397540,1741104658057,-1500.0,0.00042356,120]
[355397541,1741104658067,-1500.0,0.00042389,120]
[355397542,1741104658079,-37176.43,0.000424,30]
[355397543,1741104658092,-2000.0,0.0004242,120]
[355397544,1741104658103,-1422.5450039,0.00042421,4]
[355397545,1741104658114,-199.77297167,0.00042438,120]
[355397546,1741104658125,-1500.0,0.0004246,120]
[355397547,1741104658135,-800.0,0.0004246,14]
[355397548,1741104658144,-1500.0,0.00042464,120]
[355397549,1741104658154,-150.0,0.00042465,2]
[355397550,1741104658164,-500.0,0.00042465,120]
[355397551,1741104658173,-1171.51,0.00042465,120]
[355397552,1741104658192,-1056.18,0.00042465,120]
[355397553,1741104658202,-235.39,0.00042465,120]
[355397554,1741104658212,-1132.47,0.00042465,120]
[355397555,1741104658222,-500.0,0.00042465,120]
[355397556,1741104658232,-248.8187594,0.00042465,120]
[355397557,1741104658241,-500.0,0.00042465,120]
[355397558,1741104658252,-500.0,0.00042465,120]
[355397559,1741104658262,-500.0,0.00042465,120]
[355397560,1741104658271,-175.26002514,0.00042465,120]
[355397561,1741104658280,-500.0,0.00042465,120]
[355397562,1741104658290,-500.0,0.00042465,120]
[355397563,1741104658300,-500.0,0.00042465,120]
[355397564,1741104658309,-500.0,0.00042465,120]
[355397565,1741104658319,-500.0,0.00042465,120]
[355397566,1741104658329,-500.0,0.00042465,120]
[355397567,1741104658339,-537.53,0.00042465,120]
[355397568,1741104658348,-500.0,0.00042465,120]
[355397569,1741104658358,-500.0,0.00042465,120]
[355397570,1741104658368,-500.0,0.00042465,120]
[355397571,1741104658378,-500.0,0.00042465,120]
[355397572,1741104658387,-500.0,0.00042465,120]
[355397573,1741104658396,-520.16,0.00042465,120]
[355397574,1741104658406,-1044.86,0.00042465,120]
[355397575,1741104658416,-500.0,0.00042465,120]
[355397576,1741104658429,-515.98,0.00042465,120]
[355397577,1741104658439,-500.0,0.00042465,120]
[355397578,1741104658448,-273.04,0.00042465,120]
[355397579,1741104658458,-327.53353828,0.00042465,120]
[355397580,1741104658467,-510.36819029,0.00042465,120]
[355397581,1741104658477,-500.0,0.00042465,120]
[355397582,1741104658486,-500.0,0.00042465,120]
[355397583,1741104658495,-734.88,0.00042465,120]
[355397584,1741104658505,-500.0,0.00042465,120]
[355397585,1741104658514,-500.0,0.00042465,120]
[355397586,1741104658523,-500.0,0.00042465,120]
[355397587,1741104658532,-500.0,0.00042465,120]
[355397588,1741104658542,-4286.73,0.00042465,120]
[355397589,1741104658552,-46585.05,0.00042465,7]
[355397590,1741104658561,-759.36,0.00042465,120]
[355397591,1741104658571,-500.0,0.00042465,120]
[355397592,1741104658581,-2538.09,0.00042465,120]
[355397593,1741104658591,-3000.0,0.00042465,120]
[355397594,1741104658601,-500.0,0.00042465,120]
[355397595,1741104658611,-2389.91,0.00042465,120]
[355397596,1741104658621,-1397.6,0.00042465,120]
[355397597,1741104658631,-500.0,0.00042465,120]
[355397598,1741104658641,-537.88,0.00042465,120]
[355397599,1741104658651,-1214.36,0.00042465,120]
[355397600,1741104658665,-500.0,0.00042465,120]
[355397601,1741104658677,-2527.3,0.00042465,6]
[355397602,1741104658688,-500.0,0.00042465,120]
[355397603,1741104658698,-676.61,0.00042465,120]
[355397604,1741104658708,-500.0,0.00042465,120]
[355397605,1741104658718,-500.0,0.00042465,120]
[355397606,1741104658727,-500.0,0.00042465,120]
[355397607,1741104658737,-600.64,0.00042465,120]
[355397608,1741104658748,-1052.74,0.00042465,120]
[355397609,1741104658758,-1897.92,0.00042465,120]
[355397610,1741104658767,-2155.44,0.00042465,120]
[355397611,1741104658778,-1373.15,0.00042465,120]
[355397612,1741104658788,-689.05,0.00042465,120]
[355397613,1741104658798,-1000.0,0.00042465,88]
[355397614,1741104658807,-1150.18,0.00042465,120]
[355397615,1741104658817,-941.29,0.00042465,120]
[355397616,1741104658827,-500.0,0.00042465,120]
[355397617,1741104658836,-751.73,0.00042465,120]
[355397618,1741104658846,-1000.0,0.00042465,120]
[355397619,1741104658855,-150.0,0.00042473,2]
[355397620,1741104658865,-1000.0,0.000425,120]
[355397621,1741104658874,-1000.0,0.000425,120]
[355397622,1741104658881,-379.11,0.000425,30]
[355397623,1741104658890,-1750.16,0.000425,30]
[355397624,1741104658898,-3040.79,0.000425,60]
[355397625,1741104658907,-250.0,0.00042521,10]
[355397626,1741104658916,-500.0,0.00042571,10]
[355397627,1741104658923,-540.70029327,0.00042624,120]
[355397628,1741104658933,-151.0,0.00042628,120]
[355397629,1741104658943,-151.0,0.00042628,120]
[355397630,1741104658953,-800.0,0.00042691,14]
[355397631,1741104658961,-151.0,0.00042739,120]
[355397632,1741104658971,-150.0,0.00042739,2]
[355397633,1741104658978,-151.0,0.00042739,120]
[355397634,1741104658986,-1171.51,0.00042739,120]
[355397635,1741104658994,-1056.18,0.00042739,120]
[355397636,1741104659002,-1132.47,0.00042739,120]
[355397637,1741104659010,-151.0,0.00042739,120]
[355397638,1741104659018,-151.0,0.00042739,120]
[355397639,1741104659025,-500.0,0.00042739,120]
[355397640,1741104659033,-370.209806,0.00042739,14]
[355397641,1741104659041,-151.0,0.00042739,120]
[355397642,1741104659049,-500.0,0.00042739,120]
[355397643,1741104659057,-370.209806,0.00042739,14]
[355397644,1741104659068,-617.38,0.00042739,120]
[355397645,1741104659078,-151.0,0.00042739,120]
[355397646,1741104659088,-500.0,0.00042739,120]
[355397647,1741104659098,-151.0,0.00042739,120]
[355397648,1741104659108,-500.0,0.00042739,120]
[355397649,1741104659118,-500.0,0.00042739,120]
[355397650,1741104659129,-500.0,0.00042739,120]
[355397651,1741104659139,-537.53,0.00042739,120]
[355397652,1741104659149,-500.0,0.00042739,120]
[355397653,1741104659274,-500.0,0.00042739,120]
[355397654,1741104659284,-500.0,0.00042739,120]
[355397655,1741104659294,-347.38,0.00042739,120]
[355397656,1741104659305,-520.16,0.00042739,120]
[355397657,1741104659316,-1044.86,0.00042739,120]
[355397658,1741104659326,-500.0,0.00042739,120]
[355397659,1741104659336,-500.0,0.00042739,120]
[355397660,1741104659346,-500.0,0.00042739,120]
[355397661,1741104659356,-500.0,0.00042739,120]
[355397662,1741104659366,-734.88,0.00042739,120]
[355397663,1741104659376,-500.0,0.00042739,120]
[355397664,1741104659386,-500.0,0.00042739,120]
[355397665,1741104659395,-4286.73,0.00042739,120]
[355397666,1741104659405,-46585.05,0.00042739,7]
[355397667,1741104659415,-4976.68,0.00042739,120]
[355397668,1741104659427,-759.36,0.00042739,120]
[355397669,1741104659437,-590.28,0.00042739,120]
[355397670,1741104659448,-2538.09,0.00042739,120]
[355397671,1741104659458,-500.0,0.00042739,120]
[355397672,1741104659468,-2389.91,0.00042739,120]
[355397673,1741104659477,-1397.6,0.00042739,120]
[355397674,1741104659487,-500.0,0.00042739,120]
[355397675,1741104659497,-537.88,0.00042739,120]
[355397676,1741104659506,-1214.36,0.00042739,120]
[355397677,1741104659516,-500.0,0.00042739,120]
[355397678,1741104659526,-2527.3,0.00042739,6]
[355397679,1741104659535,-412.633779,0.00042739,120]
[355397680,1741104659546,-412.633779,0.00042739,120]
[355397681,1741104659555,-500.0,0.00042739,120]
[355397682,1741104659564,-676.61,0.00042739,120]
[355397683,1741104659574,-500.0,0.00042739,120]
[355397684,1741104659583,-354.16,0.00042739,120]
[355397685,1741104659593,-500.0,0.00042739,120]
[355397686,1741104659603,-151.0,0.00042739,120]
[355397687,1741104659613,-600.64,0.00042739,120]
[355397688,1741104659626,-151.0,0.00042739,120]
[355397689,1741104659638,-1052.74,0.00042739,120]
[355397690,1741104659651,-1897.92,0.00042739,120]
[355397691,1741104659660,-2155.44,0.00042739,120]
[355397692,1741104659671,-509.351094,0.00042739,120]
[355397693,1741104659683,-1373.15,0.00042739,120]
[355397694,1741104659694,-509.351094,0.00042739,120]
[355397695,1741104659707,-151.0,0.00042739,110]
[355397696,1741104659717,-689.05,0.00042739,120]
[355397697,1741104659728,-1000.0,0.00042739,88]
[355397698,1741104659738,-1150.18,0.00042739,120]
[355397699,1741104659748,-941.29,0.00042739,120]
[355397700,1741104659757,-500.0,0.00042739,120]
[355397701,1741104659767,-751.73,0.00042739,120]
[355397702,1741104659777,-1000.0,0.00042739,120]
[355397703,1741104659786,-450.0,0.0004274,10]
[355397704,1741104659796,-150.0,0.0004275,14]
[355397705,1741104659805,-281.85799269,0.0004275,14]
[355397706,1741104659815,-800.0,0.0004277,14]
[355397707,1741104659826,-356.0733927,0.00042795,30]
[355397708,1741104659835,-356.0733927,0.00042795,30]
[355397709,1741104659845,-356.0733927,0.00042795,30]
[355397710,1741104659856,-356.0733927,0.00042795,30]
[355397711,1741104659866,-356.0733927,0.00042795,30]
[355397712,1741104659876,-356.0733927,0.00042795,30]
[355397713,1741104659886,-356.0733927,0.00042795,30]
[355397714,1741104659895,-356.0733927,0.00042795,30]
[355397715,1741104659905,-356.0733927,0.00042795,30]
[355397716,1741104659915,-151.0,0.00042795,120]
[355397717,1741104659926,-227.729722,0.00042795,120]
[355397718,1741104659936,-227.729722,0.00042795,120]
[355397719,1741104659946,-212.69,0.000428,30]
[355397720,1741104659955,-500.0,0.000428,10]
[355397721,1741104659965,-500.0,0.00042803,30]
[355397722,1741104659975,-1500.0,0.00042871,10]
[355397723,1741104659984,-1500.0,0.00042871,10]
[355397724,1741104659994,-1500.0,0.00042871,10]
[355397725,1741104660004,-1500.0,0.00042871,10]
[355397726,1741104660014,-151.0,0.00042871,120]
[355397727,1741104660023,-240.240108,0.00042871,120]
[355397728,1741104660035,-240.240108,0.00042871,120]
[355397729,1741104660045,-151.0,0.00042871,120]
[355397730,1741104660057,-1027.287648,0.00042871,120]
[355397731,1741104660069,-1027.287648,0.00042871,120]
[355397732,1741104660079,-1079.08258474,0.00042878,57]
[355397733,1741104660089,-151.0,0.000429,120]
[355397734,1741104660099,-2096.87,0.000429,30]
[355397735,1741104660109,-151.0,0.00042913,120]
[355397736,1741104660119,-327.304511,0.00042913,2]
[355397737,1741104660129,-186.200347,0.00042913,120]
[355397738,1741104660139,-186.200347,0.00042913,120]
[355397739,1741104660149,-198.446259,0.00042913,120]
[355397740,1741104660159,-205.55450368,0.00042913,2]
[355397741,1741104660170,-500.0,0.00042928,30]
[355397742,1741104660183,-800.0,0.00042959,14]
[355397743,1741104660194,-1079.08258474,0.00042978,61]
[355397744,1741104660204,-150.11402455,0.00042986,120]
[355397745,1741104660214,-199.77297167,0.00042986,120]
[355397746,1741104660225,-1500.0,0.00042992,120]
[355397747,1741104660235,-500.0,0.00042998,30]
[355397748,1741104660245,-20000.0,0.00043,43]
[355397749,1741104660256,-33132.0,0.00043,120]
[355397750,1741104660267,-58330.92798782,0.00043,120]
[355397751,1741104660277,-1149.18712849,0.00043,7]
[355397752,1741104660287,-2426.0,0.00043,6]
[355397753,1741104660296,-5000.0,0.00043,120]
[355397754,1741104660307,-151.0,0.00043,30]
[355397755,1741104660317,-3469.021931,0.00043,31]
[355397756,1741104660328,-13575.0,0.00043,10]
[355397757,1741104660338,-680.0,0.00043,120]
[355397758,1741104660349,-387.617517,0.00043,120]
[355397759,1741104660359,-1000.0,0.00043,120]
[355397760,1741104660371,-151.98668,0.00043,120]
[355397761,1741104660381,-964.0,0.00043,120]
[355397762,1741104660391,-6000.0,0.00043,60]
[355397763,1741104660401,-151.0,0.00043,120]
[355397764,1741104660412,-151.0,0.00043,120]
[355397765,1741104660421,-155.728972,0.00043,120]
[355397766,1741104660438,-347.0,0.00043,90]
[355397767,1741104660448,-1044.29674374,0.00043,120]
[355397768,1741104660457,-151.0,0.00043,120]
[355397769,1741104660469,-151.0,0.00043,120]
[355397770,1741104660479,-151.0,0.00043,120]
[355397771,1741104660490,-472.0,0.00043,22]
[355397772,1741104660499,-150.0,0.00043013,2]
[355397773,1741104660510,-151.0,0.00043013,120]
[355397774,1741104660520,-1171.51,0.00043013,120]
[355397775,1741104660530,-1056.18,0.00043013,120]
[355397776,1741104660541,-1132.47,0.00043013,120]
[355397777,1741104660551,-500.0,0.00043013,120]
[355397778,1741104660561,-500.0,0.00043013,120]
[355397779,1741104660572,-537.53,0.00043013,120]
[355397780,1741104660582,-190.36,0.00043013,120]
[355397781,1741104660593,-500.0,0.00043013,120]
[355397782,1741104660603,-500.0,0.00043013,120]
[355397783,1741104660614,-520.16,0.00043013,120]
[355397784,1741104660623,-1044.86,0.00043013,120]
[355397785,1741104660634,-500.0,0.00043013,120]
[355397786,1741104660646,-500.0,0.00043013,120]
[355397787,1741104660657,-500.0,0.00043013,120]
[355397788,1741104660669,-500.0,0.00043013,120]
[355397789,1741104660686,-734.88,0.00043013,120]
[355397790,1741104660698,-500.0,0.00043013,120]
[355397791,1741104660709,-500.0,0.00043013,120]
[355397792,1741104660719,-4286.73,0.00043013,120]
[355397793,1741104660730,-46585.05,0.00043013,7]
[355397794,1741104660742,-759.36,0.00043013,120]
[355397795,1741104660752,-2538.09,0.00043013,120]
[355397796,1741104660762,-500.0,0.00043013,120]
[355397797,1741104660772,-2389.91,0.00043013,120]
[355397798,1741104660782,-1397.6,0.00043013,120]
[355397799,1741104660791,-500.0,0.00043013,120]
[355397800,1741104660801,-537.88,0.00043013,120]
[355397801,1741104660810,-1214.36,0.00043013,120]
[355397802,1741104660820,-336.05876073,0.00043013,120]
[355397803,1741104660831,-2527.3,0.00043013,6]
[355397804,1741104660842,-500.0,0.00043013,120]
[355397805,1741104660851,-676.61,0.00043013,120]
[355397806,1741104660861,-500.0,0.00043013,120]
[355397807,1741104660871,-500.0,0.00043013,120]
[355397808,1741104660881,-600.64,0.00043013,120]
[355397809,1741104660890,-1052.74,0.00043013,120]
[355397810,1741104660900,-1897.92,0.00043013,120]
[355397811,1741104660909,-2155.44,0.00043013,120]
[355397812,1741104660918,-1373.15,0.00043013,120]
[355397813,1741104660931,-689.05,0.00043013,120]
[355397814,1741104660940,-1000.0,0.00043013,88]
[355397815,1741104660949,-1150.18,0.00043013,120]
[355397816,1741104660958,-941.29,0.00043013,120]
[355397817,1741104660966,-500.0,0.00043013,120]
[355397818,1741104660975,-751.73,0.00043013,120]
[355397819,1741104660985,-1000.0,0.00043013,120]
[355397820,1741104660994,-600.0,0.00043013,90]
[355397821,1741104661004,-600.0,0.00043013,7]
[355397822,1741104661013,-347.0,0.00043014,90]
[355397823,1741104661023,-250.0,0.00043021,2]
[355397824,1741104661033,-540.70029327,0.00043068,120]
[355397825,1741104661043,-800.0,0.00043078,14]
[355397826,1741104661053,-1079.08258474,0.00043078,35]
[355397827,1741104661063,-500.0,0.00043082,30]
[355397828,1741104661073,-894.7482395,0.00043096,10]
[355397829,1741104661082,-733.0,0.000431,30]
[355397830,1741104661091,-2900.0,0.00043122,60]
[355397831,1741104661101,-600.0,0.00043123,120]
[355397832,1741104661111,-800.0,0.0004314,14]
[355397833,1741104661121,-7354.65126874,0.00043176,2]
[355397834,1741104661130,-2000.0,0.00043176,6]
[355397835,1741104661140,-151.0,0.00043176,120]
[355397836,1741104661150,-351.0,0.00043176,14]
[355397837,1741104661159,-162.427226,0.00043176,120]
[355397838,1741104661169,-1079.08258474,0.00043178,62]
[355397839,1741104661181,-315.0,0.00043188,14]
[355397840,1741104661191,-315.0,0.00043188,14]
[355397841,1741104661201,-351.0,0.00043188,14]
[355397842,1741104661211,-351.0,0.00043188,14]
[355397843,1741104661221,-351.0,0.00043188,14]
[355397844,1741104661230,-351.0,0.00043188,14]
[355397845,1741104661239,-202.22191103,0.00043188,14]
[355397846,1741104661249,-206.95485341,0.00043188,14]
[355397847,1741104661259,-351.0,0.00043188,14]
[355397848,1741104661268,-351.0,0.00043188,14]
[355397849,1741104661278,-351.0,0.00043188,14]
[355397850,1741104661288,-351.0,0.00043188,14]
[355397851,1741104661297,-351.0,0.00043188,14]
[355397852,1741104661306,-351.0,0.00043188,14]
[355397853,1741104661316,-351.0,0.00043188,14]
[355397854,1741104661325,-351.0,0.00043188,14]
[355397855,1741104661335,-351.0,0.00043188,14]
[355397856,1741104661344,-392.60160343,0.00043188,14]
[355397857,1741104661355,-315.0,0.00043188,14]
[355397858,1741104661364,-315.0,0.00043188,14]
[355397859,1741104661373,-315.0,0.00043188,14]
[355397860,1741104661383,-315.0,0.00043188,14]
[355397861,1741104661392,-315.0,0.00043188,14]
[355397862,1741104661401,-315.0,0.00043188,14]
[355397863,1741104661411,-315.0,0.00043188,14]
[355397864,1741104661421,-315.0,0.00043188,14]